Cogmind - Beta 17 @@@ ROGUE MODE // 2026.07.10 @ 08:08:08 Player: Dadrick Result: Destroyed by Hotshot with Improved Heavy Laser Performance ------------- Evolutions (7) 3500 Regions Visited (23) 4600 Robots Destroyed (398) 1990 Value Destroyed (20259) 20259 Prototype IDs (43) 860 Alien Tech Used (3) 600 Bonus (8767) 8767 TOTAL SCORE: 40576 Bonus ------- High Alert Combat Kills 2543 Follower Combat Kills 2270 Entered Garrisons 1000 Used RIF Installer 3000 Met Zhirov 300 Friendly Fire -346 Cogmind --------- Core Integrity 0/1300 Matter 280/300 Energy 250/250 System Corruption 43% Temperature Cool (18) Movement Core (250) Ox4 Location -3/Protoforge Parts ------- > --- POWER (2) -------- Micro Antimatter Reactor > --- PROPULSION (6) --- (None) > --- UTILITY (10) ----- Small Battery Advanced Signal Interpreter Advanced Target Analyzer Advanced Target Analyzer Core Analyzer Relay Coupler [Hunter] (10) Relay Coupler [Behemoth] (5) > --- WEAPON (3) ------- Gamma Rifle > --- INVENTORY (5) ---- Advanced Remote Datajack Peak State ------------ > --- POWER ------------ Micro Antimatter Reactor Micro Antimatter Reactor > --- PROPULSION ------- Improved Heavy Siege Treads Improved Heavy Siege Treads Improved Heavy Siege Treads > --- UTILITY ---------- Advanced Heat Sink Huge Storage Unit Advanced Signal Interpreter Core Analyzer Graphene Brace Relay Coupler [NC] Relay Coupler [Grunt] Relay Coupler [Sentry] Relay Coupler [Hunter] Relay Coupler [Heavy] > --- WEAPON ----------- Matter Neutralizer Hypervelocity Mass Driver Advanced Remote Datajack > --- INVENTORY -------- Antimatter Reactor Micro Antimatter Reactor Improved Heavy Siege Treads Improved Heavy Siege Treads Centrium Wheel Advanced Heat Sink Matter Compressor Improved Sensor Array Advanced Sensor Array Advanced Weapon Cycler Layered Light Armor Plating Relay Coupler [Swarmer] Relay Coupler [Hunter] Relay Coupler [Behemoth] High-powered Tractor Beam Transdimensional Reconstructor Hypervelocity Mass Driver Hypervelocity Mass Driver Linear Accelerator Gamma Bomb Array Heavy Rocket Launcher Advanced Remote Datajack Advanced Remote Datajack [Rating: 143] Favorites ----------- Power Reinforced Deuterium Engine Engine Reinforced Deuterium Engine Power Core Nuclear Core Reactor Light Antimatter Reactor Propulsion Armored Treads Treads Armored Treads Leg Aluminum Leg Wheel Armored Huge Wheel Hover Unit Improved Antigrav System Utility Huge Storage Unit Device Improved Sensor Array Storage Huge Storage Unit Processor Improved Signal Interpreter Hackware Relay Coupler [Grunt] Protection Medium Armor Plating Artifact Phase Redirector Weapon Autogun Energy Gun Gatling Laser Energy Cannon Heavy Phase Cannon Ballistic Gun Autogun Ballistic Cannon Heavy Assault Cannon Launcher Heavy Rocket Launcher Special Weapon Advanced Remote Datajack Impact Weapon Powered Hammer Slashing Weapon Axe Build | -11 -10 -9 -9 -9 -8 -7 -7 -7 -7 -6 -6 -5 -5 -4 -4 -4 -4 -4 -4 -3 -3 -3 -3 ------- Run | Yrd Mat Mat Sto Gar Mat Fac Gar Fac Gar Fac Gar Fac Gar Fac Was Fac Upp Upp Zhi Pro Res Qua Frg Slots Evolved 14 | . . 2 . . 2 2 . . . 2 . 2 . 2 . . . . . . 2 . . Power 1 | . . . . . . . . . . . . 1 . . . . . . . . . . . Propulsion 4 | . . 1 . . . 1 . . . . . . . . . . . . . . 2 . . Utility 8 | . . . . . 2 1 . . . 2 . 1 . 2 . . . . . . . . . Weapon 1 | . . 1 . . . . . . . . . . . . . . . . . . . . . Parts Attached 243 | 8 14 20 6 8 27 2 14 6 18 . 15 1 24 3 2 9 1 1 5 2 12 18 27 Power 24 | 1 3 2 . 2 . . 1 2 1 . 1 . 4 . . . . . 1 . 1 3 2 Engine 12 | 1 3 1 . 1 . . 1 2 1 . . . 2 . . . . . . . . . . Core 4 | . . 1 . 1 . . . . . . 1 . 1 . . . . . . . . . . Reactor 8 | . . . . . . . . . . . . . 1 . . . . . 1 . 1 3 2 Propulsion 49 | 2 2 5 . . 7 1 2 2 8 . 3 . 1 . 2 1 . . . . 3 4 6 Treads 40 | . 2 5 . . 6 1 2 1 8 . 3 . . . 2 1 . . . . 3 4 2 Leg 2 | 2 . . . . . . . . . . . . . . . . . . . . . . . Wheel 4 | . . . . . 1 . . 1 . . . . 1 . . . . . . . . . 1 Hover 3 | . . . . . . . . . . . . . . . . . . . . . . . 3 Flight . | . . . . . . . . . . . . . . . . . . . . . . . . Utility 92 | 2 5 4 3 1 10 1 5 1 7 . 6 1 13 2 . 7 . 1 2 1 4 6 10 Device 30 | 1 . . 2 . 4 . 3 . 1 . 1 . 5 1 . 5 . . 1 1 2 1 2 Storage 7 | 1 2 2 . . . . . . . . . . . . . 1 . . . . . . 1 Processor 8 | . . . . . 2 1 . . . . . . 1 . . . . . . . . 1 3 Hackware 24 | . . . . . . . 1 1 4 . 5 . 6 1 . . . . . . 1 2 3 Protection 22 | . 3 2 1 1 4 . 1 . 2 . . 1 1 . . 1 . 1 1 . 1 1 1 Artifact 1 | . . . . . . . . . . . . . . . . . . . . . . 1 . Weapon 78 | 3 4 9 3 5 10 . 6 1 2 . 5 . 6 1 . 1 1 . 2 1 4 5 9 Energy Gun 13 | 2 . 1 . . . . 2 . . . 2 . 1 . . . . . . . . . 5 Energy Cannon 4 | . . . . . . . 2 . . . . . . . . . . . . . . 2 . Ballistic Gun 29 | 1 2 7 2 4 8 . 1 . . . 2 . . . . . . . . . 1 . 1 Ballistic Cannon 16 | . . . . . 1 . . 1 1 . . . 3 . . . 1 . 2 1 2 3 1 Launcher 5 | . 1 1 . . . . . . . . 1 . . . . . . . . . 1 . 1 Special Weapon 6 | . 1 . . . . . 1 . 1 . . . 1 1 . 1 . . . . . . . Impact Weapon 2 | . . . 1 . 1 . . . . . . . . . . . . . . . . . . Slashing Weapon 3 | . . . . 1 . . . . . . . . 1 . . . . . . . . . 1 Piercing Weapon . | . . . . . . . . . . . . . . . . . . . . . . . . Special Melee Weapon . | . . . . . . . . . . . . . . . . . . . . . . . . Unidentified Prototypes 19 | . . 2 1 . 1 . . 1 . . . . . . . 1 . . 5 . 2 1 5 Corrupted Parts 4 | . . . . . . . . . 3 . 1 . . . . . . . . . . . . System Corruption 52 | . . . . . . . . . 37 . 15 . . . . . . . . . . . . Parts Lost 73 | . 2 . . 5 6 . 4 . 6 . 1 . 8 . . . 1 1 . 2 2 3 32 Power 9 | . 1 . . 1 . . . . 2 . . . 2 . . . . . . . . 1 2 Propulsion 16 | . . . . . . . 1 . 3 . . . 1 . . . . . . 1 1 . 9 Utility 29 | . 1 . . 1 4 . 2 . . . . . 4 . . . . 1 . 1 1 1 13 Weapon 19 | . . . . 3 2 . 1 . 1 . 1 . 1 . . . 1 . . . . 1 8 Highest Loss Streak 14 | . 1 . . 4 6 . 1 . 4 . 1 . 3 . . . 1 1 . 1 1 2 14 To Critical Strikes 1 | . . . . . . . . . . . . . . . . . 1 . . . . . . Average Backups 20 | 1 9 14 14 16 23 24 24 24 21 22 22 22 22 20 21 20 21 22 22 21 23 23 16 Power 1 | . . 1 1 . 1 1 1 1 1 1 1 1 . 1 1 2 2 3 2 2 2 2 1 Propulsion 2 | . 1 2 2 2 6 4 2 2 2 3 2 2 1 1 1 1 1 1 1 . . 2 . Utility 10 | . 2 5 5 6 9 10 12 13 12 13 13 13 14 13 14 12 12 12 11 11 12 11 7 Weapon 5 | 1 4 5 6 6 7 8 7 6 3 3 3 4 3 3 3 3 3 4 4 4 5 4 3 Tool/Special . | . . . . . . . . . . . . . . . . . . . . . . . . Unused Backups 57 | . 2 11 3 . 3 1 8 4 2 . 7 . 6 . . 1 . . 2 . 2 . 5 Power 7 | . . 1 1 . . . . 1 . . . . 1 . . . . . 1 . 1 . 1 Propulsion 3 | . . 1 . . 2 . . . . . . . . . . . . . . . . . . Utility 33 | . . 4 2 . 1 1 5 2 2 . 7 . 4 . . 1 . . 1 . 1 . 2 Weapon 13 | . 2 5 . . . . 3 1 . . . . 1 . . . . . . . . . 1 Tool/Special 1 | . . . . . . . . . . . . . . . . . . . . . . . 1 Average Slot Usage (%) 89 | . 99 99 99 100 91 99 99 93 93 80 85 78 82 83 84 82 78 79 77 83 82 84 76 Engine 4 | . 14 1 . 8 9 7 7 6 6 6 2 . 3 5 5 5 5 5 5 5 3 . . Core 1 | . . 9 11 2 . . . . . . 3 5 1 . . . . . . . . . . Reactor 2 | . . . . . . . . . . . . . 2 5 5 5 5 5 5 5 4 8 8 Treads 18 | . 24 32 33 33 25 29 29 18 24 13 13 11 10 5 5 5 5 5 5 7 13 14 9 Wheel 1 | . . . . . . . . 5 . . . . . 4 5 5 5 5 5 2 . . 1 Device 7 | . 5 3 2 . 4 7 7 7 . 6 5 7 10 19 15 14 10 12 14 15 13 5 10 Storage 7 | . 14 11 11 11 9 7 7 7 7 6 6 5 5 5 5 5 5 5 5 5 4 4 3 Processor 6 | . . . . . 5 14 15 7 7 6 6 5 6 10 10 10 10 10 10 10 9 9 9 Hackware 11 | . . . . . . . 3 14 17 13 18 17 16 16 21 17 15 15 15 15 17 23 17 Protection 5 | . 7 7 8 11 10 7 2 . 4 6 7 5 3 . . 2 5 4 5 5 1 2 1 Energy Gun 1 | . 13 . . . . . . . . . 6 11 4 . . . . . . . . . . Energy Cannon 1 | . . . . . . . 10 14 . . . . . . . . . . . . . 2 2 Ballistic Gun 9 | . 13 31 30 29 26 23 5 . . . 3 . . . . . . . . . . . . Ballistic Cannon 3 | . . . . . . . . . 14 13 3 . 5 5 5 5 5 5 . 5 7 8 5 Impact Weapon 1 | . . . 2 . . . 5 4 5 6 3 3 3 . . . . . . . . . . Slashing Weapon 1 | . . . . 3 . . . . . . . . . 3 . 4 5 5 5 3 1 1 . Peak Build Rating 143 | 7 12 25 27 31 42 47 55 55 69 72 83 80 97 101 99 105 101 102 111 113 140 142 143 Average Rating 69 | 5 10 22 23 28 38 46 52 53 58 72 78 79 88 95 98 97 97 99 96 105 128 135 120 On Entrance 68 | . 7 12 24 24 31 40 47 55 54 69 72 77 79 86 95 95 97 98 102 103 112 134 135 Avg Prop Armor Cover (%) 10 | . . . . . 6 . . 15 20 . . . 13 12 9 10 8 8 13 9 . . 2 Naked Turns . | . . . . . . . . . . . . . . . . . . . . . . . . Heaviest Build 153 | 12 35 43 44 113 130 108 123 114 123 124 146 121 139 142 141 148 146 146 146 150 153 142 136 Greatest Support 225 | 20 46 69 60 60 76 80 80 80 150 150 150 150 150 28 75 75 28 28 28 150 220 225 225 Greatest Overweight (x) 7 | 1 . . . 1 4 1 1 5 4 . . . 4 5 5 5 5 5 5 5 1 . 7 Average Overweight (x) 1 | . . . . . 1 1 1 2 . . . . . 4 3 4 4 4 4 2 . . . Largest Inventory Capacity 25 | 8 15 25 15 25 25 25 25 25 25 25 25 25 25 25 25 25 25 25 25 25 25 25 25 Average Capacity 22 | 6 10 15 15 19 25 25 25 25 25 25 25 25 25 25 25 25 25 25 25 25 25 25 22 Most Carried 25 | 3 15 16 15 24 25 25 25 25 25 24 25 25 25 24 25 25 25 25 25 25 25 25 25 Average Carried 21 | 1 9 14 14 16 23 24 24 24 23 24 24 24 24 23 24 23 23 24 24 24 24 24 16 Final Capacity 25 | 8 15 15 15 25 25 25 25 25 25 25 25 25 25 25 25 25 25 25 25 25 25 25 5 Final Carried 25 | 3 15 15 15 24 24 25 25 25 25 24 25 25 25 24 25 24 25 25 25 24 23 25 1 Class Distribution -------------------- 35% | Botlord-Mutant 16% | Botlord-Tank 15% | Tank 11% | Bothacker-Mutant 7% | Mutant 3% | Skirmisher 3% | Gunner Dominant Class ---------------- Mutant | -10/Materials Tank | -9/Materials Tank | -9/Storage Tank | -9/Garrison Tank | -8/Materials Skirmisher | -7/Factory Bothacker-Mutant | -7/Garrison Bothacker-Mutant | -7/Factory Bothacker-Mutant | -7/Garrison Botlord-Mutant | -6/Factory Botlord-Mutant | -6/Garrison Botlord-Mutant | -5/Factory Botlord-Mutant | -5/Garrison Botlord-Mutant | -4/Factory Botlord-Tank | -4/Waste Botlord-Mutant | -4/Factory Botlord-Mutant | -4/Upper Caves Botlord-Mutant | -4/Upper Caves Botlord-Mutant | -4/Zhirov Botlord-Mutant | -3/Proximity Caves Botlord-Tank | -3/Research Botlord-Mutant | -3/Quarantine Botlord-Mutant | -3/Protoforge Resources | -11 -10 -9 -9 -9 -8 -7 -7 -7 -7 -6 -6 -5 -5 -4 -4 -4 -4 -4 -4 -3 -3 -3 -3 ----------- Run | Yrd Mat Mat Sto Gar Mat Fac Gar Fac Gar Fac Gar Fac Gar Fac Was Fac Upp Upp Zhi Pro Res Qua Frg Matter Collected 15645 | 290 427 1348 784 702 1608 186 928 185 664 . 1379 55 1092 199 145 745 282 187 215 989 992 713 1530 Remotely 3761 | . . . 222 . 75 . 148 . . . 278 . . . . 514 . . . 497 640 307 1080 Salvage Created 17694 | 129 787 1709 1015 1178 2345 66 1465 542 1016 . 1040 66 1290 464 143 578 78 204 215 541 665 657 1501 Parts 924 | 5 49 112 58 56 127 2 69 33 29 . 53 4 49 29 9 25 3 10 1 24 30 53 94 Haulers Intercepted 11 | . 1 5 1 . 2 . . 1 . . . . . 1 . . . . . . . . . Recyclers Shooed 9 | . . 4 . . 2 . . . . . . . . . . 2 . . . . 1 . . Parts Field Recycled . | . . . . . . . . . . . . . . . . . . . . . . . . Retrieved Matter . | . . . . . . . . . . . . . . . . . . . . . . . . Parts Self-Destructed 36 | . . . . . . . . . . . . . . . . . 3 10 1 22 . . . Prevented 3 | . . . . . . . . . . . . . . . . . . . . 3 . . . Parts Restored . | . . . . . . . . . . . . . . . . . . . . . . . . Kills | -11 -10 -9 -9 -9 -8 -7 -7 -7 -7 -6 -6 -5 -5 -4 -4 -4 -4 -4 -4 -3 -3 -3 -3 ------- Run | Yrd Mat Mat Sto Gar Mat Fac Gar Fac Gar Fac Gar Fac Gar Fac Was Fac Upp Upp Zhi Pro Res Qua Frg Combat Hostiles Destroyed 320 | . 15 33 19 18 45 . 29 6 9 . 23 2 37 2 . 11 2 5 . 18 13 10 23 Melee 2 | . . . . . . . . . . . 1 . . . . 1 . . . . . . . Guns 165 | . 12 29 16 18 45 . 10 . . . 10 2 20 . . . . . . . . . 3 Cannons 115 | . . . . . . . 17 5 9 . 6 . 16 2 . 10 2 5 . 10 13 10 10 AOE 25 | . 1 4 3 . . . . . . . 6 . . . . . . . . 8 . . 3 Classes Destroyed 24 | 2 6 3 1 3 1 . 3 . . . 1 . 1 . . . . . . 1 . . 2 Worker 14 | . 2 4 2 . 3 . . 1 . . . . . 1 . . . . . . . . 1 Builder 15 | . 1 1 1 . 2 . . . . . . . . 2 . 1 . . . . 1 2 4 Tunneler 3 | 2 . . . . . . . . . . . . . . . 1 . . . . . . . Hauler 11 | . 1 5 1 . 2 . . 1 . . . . . 1 . . . . . . . . . Recycler 10 | 1 1 1 1 . 1 . . 2 . . . . . 2 . . . . . . . 1 . Minesweeper 1 | . . . . . . . . . . . . . . . . . . . . 1 . . . Mechanic 2 | . . . 1 . 1 . . . . . . . . . . . . . . . . . . Operator 4 | . 1 1 1 . 1 . . . . . . . . . . . . . . . . . . Drone 1 | . . . . . . . . . . . . . . . . . . . . . . . 1 Watcher 14 | . . 5 2 . 1 2 . 1 . . 1 . . . . 1 . . . . . 1 . Swarmer 81 | . 3 11 3 6 12 . 6 1 . . 6 1 19 . . . . . . 10 . . 3 Cutter 4 | . . . . . . . . . . . 4 . . . . . . . . . . . . Saboteur 2 | . . . . . . . . . . . . . 1 . . 1 . . . . . . . Grunt 94 | . 12 10 9 4 16 . 11 . 1 . 6 . 9 . . 3 . 2 . 4 4 . 3 Brawler 8 | . . 3 . . 2 . . . . . . . 2 . . 1 . . . . . . . Duelist 10 | . . . . 1 1 . . . 4 . . . 3 . . . . 1 . . . . . Protector 2 | . . . . . 1 . 1 . . . . . . . . . . . . . . . . Sentry 45 | . . 9 7 4 13 . 5 2 1 . 2 . 1 . . 1 . . . . . . . Demolisher 1 | . . . . . . . 1 . . . . . . . . . . . . . . . . Specialist 5 | . . . . . . . 2 . . . 1 . . . . . . . . . . . 2 Hunter 13 | . . . . . . . 2 . . . . . 1 . . . 2 . . 2 2 4 . Programmer 44 | . . . . 2 . . . 3 3 . 3 1 . 2 . 4 . 2 . 2 8 6 8 Behemoth 5 | . . . . 1 . . 1 . . . 1 . 1 . . 1 . . . . . . . Hotshot 5 | . . . . . . . . . . . . . . . . . . . . . . . 5 Overlord 1 | . . . . . . . . . . . . . . . . . . . . . . . 1 Savage 1 | . . . . . . . 1 . . . . . . . . . . . . . . . . Martyr 2 | . . . . . . . . . . . . . . . 2 . . . . . . . . Best Kill Streak 14 | 2 8 7 5 5 14 1 4 3 4 . 4 1 9 4 . 6 2 3 . 5 4 5 8 Combat Bots Only 9 | . 5 6 4 5 6 . 4 1 4 . 4 1 9 2 . 6 2 3 . 5 4 5 5 Max Kills in Single Turn 3 | 1 3 2 2 2 2 1 2 3 1 . 2 1 2 1 1 2 1 1 . 2 1 1 2 Gunslinging 1 | . . 1 1 1 1 . . . . . . . . . . . . . . . . . . Exploded 2 | . 1 2 2 . . . . . . . 2 . . . . . . . . 2 . . 1 Melee 1 | . . . . . . . . . . . 1 . . . . 1 . . . . . . . Uniques/NPCs Destroyed . | . . . . . . . . . . . . . . . . . . . . . . . . Combat | -11 -10 -9 -9 -9 -8 -7 -7 -7 -7 -6 -6 -5 -5 -4 -4 -4 -4 -4 -4 -3 -3 -3 -3 -------- Run | Yrd Mat Mat Sto Gar Mat Fac Gar Fac Gar Fac Gar Fac Gar Fac Was Fac Upp Upp Zhi Pro Res Qua Frg Hostile Shots Fired 2382 | . 83 139 61 86 260 . 170 76 141 . 220 10 219 11 . 113 42 35 . 150 93 195 278 Missed 699 | . 19 40 26 23 49 . 48 31 32 . 86 6 60 4 . 38 13 13 . 53 29 69 60 Hits 1683 | . 64 99 35 63 211 . 122 45 109 . 134 4 159 7 . 75 29 22 . 97 64 126 218 Melee 44 | . . . . . 11 . . . 25 . 3 . 2 . . 1 . 2 . . . . . Projectile 1639 | . 64 99 35 63 200 . 122 45 84 . 131 4 157 7 . 74 29 20 . 97 64 126 218 AOE 10 | . . . . . . . 8 . . . 1 . . . . . . . . . . 1 . Critical Strikes 84 | . 2 1 1 2 14 . 2 . 4 . 6 . 6 . . 4 1 3 . 5 4 4 25 Actively Blocked 24 | . . . . . . . . . . . . . . . . . . . . . 1 4 19 Part Disruptions 3 | . . . . . . . . . . . . . . . . . . . . . . . 3 Damage Taken 28098 | . 792 1194 490 1077 3232 . 1878 455 2122 . 1759 52 2380 72 . 923 308 266 . 912 670 2480 7036 Core 3304 | . 190 172 48 137 416 . 195 47 204 . 220 11 208 . . 109 21 32 . 45 23 228 998 Absorbed by Shields 3466 | . . . . . . . . . . . . . 598 76 . 759 227 215 . 935 656 . . Reduced by Siege Mode 972 | . . . . . . . . . . . . . 62 . . 37 28 . . . . . 845 Redirected to Shielding 97 | . . . . . . . . . . . . . . . . . . . . . . . 97 Ignored by Resistances 218 | . . . . . . . . . 16 . 187 15 . . . . . . . . . . . Regen/Repaired (Parts) 1560 | . . 349 43 . 454 . . 52 . . . . . 220 228 214 . . . . . . . Core Remaining (%) 53 | 100 24 . . 10 24 . . . 36 . 74 . 78 . . . . . . 82 . . . Volleys Fired 1144 | 10 81 113 63 44 121 8 80 24 55 . 91 6 96 19 6 66 14 25 . 53 45 39 85 Largest 3 | 2 2 3 3 3 3 3 3 2 3 . 3 3 3 1 1 1 1 1 . 1 3 3 3 Hottest 240 | 70 100 100 69 76 75 75 180 180 180 . 195 195 240 50 10 50 50 50 . 50 153 217 225 Shots Fired 2338 | 20 143 321 165 128 347 24 198 45 93 . 159 13 200 19 6 69 16 25 . 54 84 70 139 Gun 1487 | 20 127 312 154 128 342 24 128 . . . 92 12 110 . . . . . . . . . 38 Cannon 696 | . . . . . 5 . 70 42 75 . 44 . 73 13 . 55 16 25 . 44 79 69 86 Launcher 44 | . 1 3 11 . . . . . . . 8 . . . . . . . . 8 . . 13 Special 111 | . 15 6 . . . . . 3 18 . 15 1 17 6 6 14 . . . 2 5 1 2 Kinetic 1718 | 10 65 298 154 128 347 24 117 . 50 . 115 2 73 13 . 55 16 25 . 44 79 32 71 Thermal 462 | 10 77 20 . . . . 81 42 25 . 21 10 110 . . . . . . . . 37 29 Explosive 25 | . . 3 1 . . . . . . . 8 . . . . . . . . 8 . . 5 Electromagnetic 43 | . 1 . 10 . . . . . . . . . . . . . . . . . . . 32 Robot Hit Streak 39 | 11 10 12 17 19 39 3 28 7 10 . 27 5 34 7 5 18 4 8 . 3 6 7 25 Robot Miss Streak 6 | 2 4 6 4 2 5 4 6 3 3 . 4 3 5 3 1 2 3 1 . 5 3 5 6 Penetration Max 2 | . . . . . . . . . . . 2 . 1 . . 1 . . . 1 . . 1 Secondary Targets 34 | . 1 5 4 6 10 . . . . . 1 1 6 . . . . . . . . . . Max Gunslinging Chain 2 | . 1 1 1 1 2 . . . . . 1 1 1 . . . . . . . . . . Shots Hit Robots 1592 | 15 73 191 112 143 248 9 117 24 77 . 110 12 163 14 7 48 9 15 6 25 49 40 85 Core Hits 739 | 6 40 79 40 44 99 4 61 12 12 . 60 6 101 8 2 16 4 5 4 29 23 22 62 Critical Kills 15 | . . 1 . . 1 . 2 2 . . . . . . . . . . . . . 1 8 Critical Parts Destroyed 21 | . . 2 2 1 2 . 1 . 3 . 2 . . . . . . . . . . . 8 Critical Strikes 71 | . 4 3 2 3 3 . 3 2 3 . 3 . 1 1 . 7 1 6 1 3 5 2 18 Burn 4 | . 4 . . . . . . . . . . . . . . . . . . . . . . Meltdown 5 | . . . . . . . 2 2 . . . . . . . . . . . . . . 1 Destroy 26 | . . 3 1 1 3 . 1 . . . 1 . . . . . . . . . . 1 15 Blast 26 | . . . . . . . . . . . 1 . 1 1 . 7 1 6 . 3 5 1 . Corrupt 2 | . . . . . . . . . . . . . . . . . . . . . . . 2 Smash 5 | . . . 1 . . . . . 3 . 1 . . . . . . . . . . . . Sever 3 | . . . . 2 . . . . . . . . . . . . . . 1 . . . . Melee Attacks 276 | . . . 20 66 4 . 12 . 33 . 18 1 45 9 2 16 1 12 6 12 10 9 . Impact 118 | . . . 20 5 4 . 12 . 33 . 18 1 25 . . . . . . . . . . Slashing 158 | . . . . 61 . . . . . . . . 20 9 2 16 1 12 6 12 10 9 . Piercing . | . . . . . . . . . . . . . . . . . . . . . . . . Sneak Attacks 15 | . . . 2 . . . . . . . 2 . . 2 2 2 . . . 1 2 2 . Combat Hostiles . | . . . . . . . . . . . . . . . . . . . . . . . . Follow-up Attacks . | . . . . . . . . . . . . . . . . . . . . . . . . Damage Inflicted 44276 | 152 918 2768 1943 3774 3831 161 2923 1030 3179 . 3461 260 4861 599 146 2659 355 836 461 2698 1900 1582 3779 Guns 17219 | 152 785 2472 1675 1640 3831 161 1656 . . . 1777 260 2057 . . . . . . . . . 753 Cannons 15818 | . . . . . . . 1267 833 1444 . 752 . 1798 458 . 2055 355 836 . 1095 1732 1390 1803 Explosions 4591 | . 130 277 176 . . . . 187 . . 647 . . . . 422 . . . 1529 . . 1223 Melee 6605 | . . . 81 2134 . . . . 1735 . 285 . 1006 141 146 182 . . 461 74 168 192 . Ramming 43 | . 3 19 11 . . . . 10 . . . . . . . . . . . . . . . Kinetic 24921 | 54 251 2346 1675 1640 3831 161 1324 . 862 . 2157 49 1798 458 . 2055 355 836 . 1095 1732 598 1644 Thermal 7942 | 98 534 126 . . . . 1599 833 582 . 372 211 2057 . . . . . . . . 792 738 Explosive 3213 | . . 277 28 . . . . . . . 647 . . . . 422 . . . 1529 . . 310 Electromagnetic 1552 | . 130 . 148 . . . . 187 . . . . . . . . . . . . . . 1087 Impact 2101 | . . . 81 . . . . . 1735 . 285 . . . . . . . . . . . . Slashing 4504 | . . . . 2134 . . . . . . . . 1006 141 146 182 . . 461 74 168 192 . Piercing . | . . . . . . . . . . . . . . . . . . . . . . . . Highest Corruption 43 | . . . . . . . . . 43 . 17 . 1 . . 4 3 5 5 7 8 17 43 Average Corruption 7 | . . . . . . . . . 9 . 3 . 1 . . 3 3 3 5 6 2 12 28 Corruption Purged 7 | . . . . . . . . . . . . . . . . 7 . . . . . . . Corruption Blocked . | . . . . . . . . . . . . . . . . . . . . . . . . Effects 323 | . . . . . . . . . 43 . 37 . 10 . . 21 9 22 12 31 6 57 75 Message Errors 78 | . . . . . . . . . 7 . 11 . 2 . . 6 1 7 4 4 1 18 17 Matter Fused 71 | . . . . . . . . . 6 . 12 . 3 . . 3 2 5 5 6 3 12 14 Heat Flow Errors 41 | . . . . . . . . . 10 . 5 . 4 . . 2 2 1 . 4 . 3 10 Energy Discharges 34 | . . . . . . . . . 6 . 4 . . . . 3 1 3 2 4 . 5 6 Parts Rejected 3 | . . . . . . . . . . . 2 . . . . . . . . . . 1 . Parts Fused 3 | . . . . . . . . . 1 . . . . . . . . . . . . 2 . Data Loss (minor) 32 | . . . . . . . . . 5 . 1 . 1 . . 4 1 4 . 6 . 4 6 Data Loss (major) 19 | . . . . . . . . . 4 . 1 . . . . . . . 1 3 . 5 5 Misfires 17 | . . . . . . . . . 2 . 1 . . . . 3 2 . . 1 1 1 6 Alerts 11 | . . . . . . . . . 2 . . . . . . . . 2 . 3 . 2 2 Misdirections 5 | . . . . . . . . . . . . . . . . . . . . . . 1 4 Weapon Failures 9 | . . . . . . . . . . . . . . . . . . . . . 1 3 5 Overload Shots . | . . . . . . . . . . . . . . . . . . . . . . . . Overflow Damage 1784 | . . . 60 57 . . 32 19 578 . 244 . 26 22 . 146 . 132 66 149 102 120 31 Projectiles 572 | . . . . . . . 32 5 68 . . . 7 22 . 102 . 132 . 73 76 32 23 Explosions 120 | . . . 4 . . . . 14 . . 18 . . . . . . . . 76 . . 8 Melee 1092 | . . . 56 57 . . . . 510 . 226 . 19 . . 44 . . 66 . 26 88 . Knockbacks 67 | . . . . . . . . . 11 . 3 . 2 1 . 13 . 8 . 6 14 5 4 Impact 1 | . . . . . . . . . 1 . . . . . . . . . . . . . . Kinetic 63 | . . . . . . . . . 10 . 3 . 2 1 . 13 . 8 . 4 13 5 4 Secondary 3 | . . . . . . . . . . . . . . . . . . . . 2 1 . . Self-Inflicted Damage 210 | . . 31 52 . . . . 5 . . 104 . . . . . . . . . . . 18 Shots 10 | . . 2 3 . . . . . . . 3 . . . . . . . . . . . 2 Rammed 7 | . 1 4 1 . . . . 1 . . . . . . . . . . . . . . . Targets Rammed 8 | . 1 4 2 . . . . 1 . . . . . . . . . . . . . . . Kicked . | . . . . . . . . . . . . . . . . . . . . . . . . Crushed 1 | . . . 1 . . . . . . . . . . . . . . . . . . . . Highest Temperature 444 | 80 294 354 147 341 444 128 341 228 226 . 299 61 361 7 . 209 203 226 . 420 330 158 169 Average Temperature 96 | 41 75 73 49 107 154 46 94 87 95 . 72 29 69 7 . 29 103 47 . 147 101 74 61 Received Heat Transfer 5603 | . 357 414 171 210 1341 . 438 84 297 . 672 . 754 8 . 95 . 71 . 70 29 45 547 Effects 35 | . . 1 . 1 20 . . . . . 1 . 1 . . . . . . 9 2 . . Shutdowns 6 | . . . . 1 4 . . . . . . . . . . . . . . 1 . . . Energy Bleed 9 | . . . . . 6 . . . . . 1 . . . . . . . . 2 . . . Interference 9 | . . . . . 5 . . . . . . . 1 . . . . . . 2 1 . . Matter Decay 5 | . . 1 . . 1 . . . . . . . . . . . . . . 2 1 . . Short Circuit 3 | . . . . . 3 . . . . . . . . . . . . . . . . . . Damage (minor) 3 | . . . . . 1 . . . . . . . . . . . . . . 2 . . . Siege Activations 10 | . . . . . . . . . . . . . 1 1 . 2 1 . . 1 . . 4 Total Turns 173 | . . . . . . . . . . . . . 26 1 . 54 24 . . 1 . . 67 Longest Duration 37 | . . . . . . . . . . . . . 26 1 . 30 24 . . 1 . . 37 Martial Activations . | . . . . . . . . . . . . . . . . . . . . . . . . Shielding Activations . | . . . . . . . . . . . . . . . . . . . . . . . . Robots Disrupted 1 | . . . . . . . . . . . . . . . . . . . . . . . 1 Combat Hostiles 1 | . . . . . . . . . . . . . . . . . . . . . . . 1 Robots Corrupted 14 | . . . 2 . . . . . 4 . 2 . . . . . . . . . . . 6 Combat Hostiles 6 | . . . . . . . . . . . . . . . . . . . . . . . 6 Parts Fried 29 | . 1 . 5 . . . . . 14 . 4 . . . . . . . . . . . 5 Impact Corruptions 18 | . . . 3 . . . . . 10 . 5 . . . . . . . . . . . . Robots Melted 8 | . 2 . . . . . 2 2 . . . . 1 . . . . . . . . . 1 Combat Hostiles 7 | . 2 . . . . . 2 1 . . . . 1 . . . . . . . . . 1 Parts Melted 25 | . 4 2 . . . . 2 3 1 . 1 . 8 . . . . . . . 1 . 3 Heat Transferred 12906 | 296 1887 370 . . . . 1933 851 629 . 822 425 4316 . . . . . . . . 740 637 Parts Sabotaged 2 | . . . . . . . . . . . . . 1 . . 1 . . . . . . . Parts Stolen . | . . . . . . . . . . . . . . . . . . . . . . . . Parts Stripped . | . . . . . . . . . . . . . . . . . . . . . . . . Power Chain Reactions 5 | . 1 . 4 . . . . . . . . . . . . . . . . . . . . Alert | -11 -10 -9 -9 -9 -8 -7 -7 -7 -7 -6 -6 -5 -5 -4 -4 -4 -4 -4 -4 -3 -3 -3 -3 ------- Run | Yrd Mat Mat Sto Gar Mat Fac Gar Fac Gar Fac Gar Fac Gar Fac Was Fac Upp Upp Zhi Pro Res Qua Frg Maximum Alert Level 5 | . . 1 2 3 4 2 3 2 3 2 5 3 5 4 1 2 . . . . 1 1 1 Low Security (%) 30 | 100 100 46 54 . . 11 10 . 11 . . . . . 34 19 . . . . 84 97 99 Level 1 24 | . . 53 41 12 17 57 24 46 41 21 4 . . . 65 56 . . . . 15 2 . Level 2 18 | . . . 4 45 45 31 26 53 39 78 23 . 1 . . 23 . . . . . . . Level 3 13 | . . . . 41 29 . 38 . 8 . 29 100 17 13 . . . . . . . . . Level 4 8 | . . . . . 8 . . . . . 39 . 36 86 . . . . . . . . . Level 5 4 | . . . . . . . . . . . 3 . 43 . . . . . . . . . . High Security . | . . . . . . . . . . . . . . . . . . . . . . . . Max Security . | . . . . . . . . . . . . . . . . . . . . . . . . Peak Influence 2412 | 5 132 310 435 896 1144 513 993 520 836 438 1609 970 2412 1266 376 496 . . . . 388 213 207 Initial 1266 | . . 45 126 271 436 513 116 520 315 438 271 844 647 1266 376 82 . . . . 65 213 40 Average 506 | . 43 179 218 636 660 328 595 399 410 416 947 922 1539 1161 238 319 . . . . 78 108 87 Influence Increases 14898 | 15 458 1048 743 875 1354 15 977 480 941 . 1688 281 2185 117 60 1217 50 165 10 444 644 395 736 Destroy 0b10 Robot/C 7600 | . 300 660 400 500 880 . 560 180 240 . 800 160 980 40 . 480 40 100 . 380 260 200 440 Destroy 0b10 Robot/NC 500 | 15 30 85 45 25 60 10 5 25 30 . 20 5 10 35 . 20 . . 10 5 5 20 40 Destroy Leader 1220 | . 72 180 116 30 216 4 30 72 30 . 40 30 50 14 . 92 10 20 . 40 50 52 72 Allied During Kill 807 | . . . 42 77 . . 5 7 12 . 184 71 170 . . 231 . . . 4 4 . . Successful Hack 146 | . . 26 14 . 7 . . . . . . . 30 2 . 12 . . . . 24 15 16 Disable Machine 675 | . 45 45 90 . 60 . 30 165 . . . 15 . . . 105 . . . . . 45 75 Anti-Garrison Action 2600 | . . . . 200 . . 250 . 600 . 450 . 800 . . 150 . . . . 150 . . Destroy Structure 765 | . 11 22 21 28 11 1 52 16 29 . 104 . 100 26 60 112 . . . . 76 48 48 Lose Combat Pursuer 585 | . . 30 15 15 120 . 45 15 . . 90 . 45 . . 15 . 45 . 15 75 15 45 Influence Decreases 14887 | 15 350 856 626 396 1121 978 150 1023 555 448 467 965 698 1452 1019 991 394 165 10 347 361 703 797 Entered New Map 5917 | . . 63 174 146 460 616 50 473 135 398 117 765 278 1146 701 36 128 . . . 32 167 32 Time Decay 6341 | 15 330 643 452 . 601 362 . 510 . 50 . 180 . 286 318 553 266 165 10 337 289 506 468 Lost Part 657 | . 20 . . 50 60 . 40 . 60 . 10 . 80 . . . . . . 10 20 30 277 Lost Ally 1822 | . . . . 200 . . 60 40 360 . 340 20 340 20 . 402 . . . . 20 . 20 Purge Threat 150 | . . 150 . . . . . . . . . . . . . . . . . . . . . Squads Dispatched 50 | . 4 1 3 . 9 1 . 3 . 1 . 3 . 2 . 9 . . . . 5 5 4 Investigation 4 | . 2 . . . . . . . . . . . . . . . . . . . 1 1 . Extermination 16 | . . . . . . 1 . 3 . . . . . 2 . 3 . . . . 2 3 2 Reinforcement 12 | . 2 1 1 . 2 . . . . 1 . . . . . 2 . . . . . 1 2 Assault 5 | . . . . . 1 . . . . . . . . . . 2 . . . . 2 . . Garrison 13 | . . . 2 . 6 . . . . . . 3 . . . 2 . . . . . . . Intercept . | . . . . . . . . . . . . . . . . . . . . . . . . Searches Triggered . | . . . . . . . . . . . . . . . . . . . . . . . . Construction Impeded 1 | . . . . . . . . . . . . . . . . 1 . . . . . . . Haulers Reinforced 1 | . . . . . . . . . . . . . . . . 1 . . . . . . . Active Scanning Responses . | . . . . . . . . . . . . . . . . . . . . . . . . Cargo Convoy Interrupts . | . . . . . . . . . . . . . . . . . . . . . . . . Stealth | -11 -10 -9 -9 -9 -8 -7 -7 -7 -7 -6 -6 -5 -5 -4 -4 -4 -4 -4 -4 -3 -3 -3 -3 --------- Run | Yrd Mat Mat Sto Gar Mat Fac Gar Fac Gar Fac Gar Fac Gar Fac Was Fac Upp Upp Zhi Pro Res Qua Frg Distress Signals 20 | . . 5 3 . 4 . . . . . . . . 1 . 4 . . . . 1 1 1 Communications Jammed . | . . . . . . . . . . . . . . . . . . . . . . . . Distress Signals . | . . . . . . . . . . . . . . . . . . . . . . . . Times Spotted 543 | . 24 50 28 27 52 4 31 11 39 3 49 8 66 9 5 35 2 8 . 20 18 17 37 Peak Tracking Total 12 | . 3 9 5 6 8 2 4 3 12 3 7 3 8 3 2 8 2 3 . 5 6 6 5 Tactical Retreats 24 | . . 2 1 1 4 . 2 1 . . 3 . 2 . . 1 . 2 . 1 2 1 1 Traps | -11 -10 -9 -9 -9 -8 -7 -7 -7 -7 -6 -6 -5 -5 -4 -4 -4 -4 -4 -4 -3 -3 -3 -3 ------- Run | Yrd Mat Mat Sto Gar Mat Fac Gar Fac Gar Fac Gar Fac Gar Fac Was Fac Upp Upp Zhi Pro Res Qua Frg Traps Triggered 37 | . 3 1 1 6 . . 4 3 8 . 1 . 5 1 . 1 . . . . 2 1 . Indirectly 2 | . 1 . 1 . . . . . . . . . . . . . . . . . . . . Trap Hack Attempts . | . . . . . . . . . . . . . . . . . . . . . . . . Triggered . | . . . . . . . . . . . . . . . . . . . . . . . . Disarmed . | . . . . . . . . . . . . . . . . . . . . . . . . Reprogrammed . | . . . . . . . . . . . . . . . . . . . . . . . . Reused . | . . . . . . . . . . . . . . . . . . . . . . . . Traps Extracted . | . . . . . . . . . . . . . . . . . . . . . . . . Installed . | . . . . . . . . . . . . . . . . . . . . . . . . Triggered . | . . . . . . . . . . . . . . . . . . . . . . . . Most Traps Carried 2 | . . . . . . . . . . . . . . . . . . . . 2 2 . . Machines | -11 -10 -9 -9 -9 -8 -7 -7 -7 -7 -6 -6 -5 -5 -4 -4 -4 -4 -4 -4 -3 -3 -3 -3 ---------- Run | Yrd Mat Mat Sto Gar Mat Fac Gar Fac Gar Fac Gar Fac Gar Fac Was Fac Upp Upp Zhi Pro Res Qua Frg Machines Disabled 67 | . 3 3 6 2 4 . 5 11 4 . 3 1 7 . . 8 . . . . 1 3 6 Max in Single Turn 10 | . 2 1 1 1 1 . 1 10 1 . 1 1 1 . . 4 . . . . . 1 2 Garrison Access 3 | . . . . . . . . . . . . . . . . 1 . . . . 1 . 1 Garrison Relay 19 | . . . . 2 . . 3 . 4 . 3 . 7 . . . . . . . . . . Machines Repaired . | . . . . . . . . . . . . . . . . . . . . . . . . Machines Dismantled . | . . . . . . . . . . . . . . . . . . . . . . . . Machines Sabotaged . | . . . . . . . . . . . . . . . . . . . . . . . . Overloaded Fab Kills . | . . . . . . . . . . . . . . . . . . . . . . . . Hacking | -11 -10 -9 -9 -9 -8 -7 -7 -7 -7 -6 -6 -5 -5 -4 -4 -4 -4 -4 -4 -3 -3 -3 -3 --------- Run | Yrd Mat Mat Sto Gar Mat Fac Gar Fac Gar Fac Gar Fac Gar Fac Was Fac Upp Upp Zhi Pro Res Qua Frg Machines Accessed 71 | . 3 7 9 2 5 2 3 2 2 1 1 2 4 2 . 4 . . 7 . 3 8 4 Terminals 47 | . 3 5 7 2 2 1 3 1 2 . 1 . 4 1 . 4 . . . . 2 6 3 Fabricators . | . . . . . . . . . . . . . . . . . . . . . . . . Repair Stations 4 | . . 1 1 . 1 . . . . . . . . 1 . . . . . . . . . Recycling Units . | . . . . . . . . . . . . . . . . . . . . . . . . Scanalyzers 7 | . . 1 . . 2 . . . . . . 1 . . . . . . . . 1 2 . Garrison Access 6 | . . . 1 . . 1 . 1 . 1 . 1 . . . . . . . . . . 1 Total Hacks 158 | . 6 16 13 3 11 2 4 3 3 1 1 2 7 3 . 9 . . 46 . 3 18 7 Successful 98 | . 2 11 7 . 8 1 2 1 . 1 . 1 2 2 . 3 . . 46 . 1 8 2 Failed 60 | . 4 5 6 3 3 1 2 2 3 . 1 1 5 1 . 6 . . . . 2 10 5 Catastrophic 17 | . . 1 2 1 . . . . 1 . . 1 3 . . 2 . . . . 2 2 2 Database Lockouts . | . . . . . . . . . . . . . . . . . . . . . . . . Manual 18 | . . 6 1 . . . . . . . . . . . . 6 . . . . 1 3 1 Terminals 81 | . 6 9 10 3 3 1 4 2 3 . 1 . 7 1 . 9 . . . . 2 14 6 Fabricators . | . . . . . . . . . . . . . . . . . . . . . . . . Repair Stations 13 | . . 4 2 . 5 . . . . . . . . 2 . . . . . . . . . Recycling Units . | . . . . . . . . . . . . . . . . . . . . . . . . Scanalyzers 12 | . . 3 . . 3 . . . . . . 1 . . . . . . . . 1 4 . Garrison Access 6 | . . . 1 . . 1 . 1 . 1 . 1 . . . . . . . . . . 1 Terminal Hacks 67 | . 2 3 4 . 2 . 2 . . . . . 2 . . 2 . . 46 . . 3 1 Record 35 | . . . . . . . . . . . . . . . . . . . 34 . . 1 . Part Schematic 4 | . . . . . . . . . . . . . . . . . . . 4 . . . . Robot Analysis 4 | . . . . . . . . . . . . . . . . . . . 4 . . . . Prototype ID Bank 4 | . . . . . . . . . . . . . . . . . . . 4 . . . . Open Door 3 | . . . 2 . . . 1 . . . . . . . . . . . . . . . . Branch Access Points 1 | . . 1 . . . . . . . . . . . . . . . . . . . . . Emergency Access Points 1 | . . . . . . . . . . . . . 1 . . . . . . . . . . Unreport Threat 1 | . . 1 . . . . . . . . . . . . . . . . . . . . . Locate Traps 2 | . 1 . . . 1 . . . . . . . . . . . . . . . . . . Hauler Manifests 2 | . 1 1 . . . . . . . . . . . . . . . . . . . . . Registered Components 3 | . . . . . 1 . . . . . . . . . . 1 . . . . . 1 . Zone Layout 5 | . . . 2 . . . . . . . . . . . . 1 . . . . . 1 1 Garrison Registry 1 | . . . . . . . 1 . . . . . . . . . . . . . . . . Security Stations 1 | . . . . . . . . . . . . . 1 . . . . . . . . . . Fabricator Hacks . | . . . . . . . . . . . . . . . . . . . . . . . . Repair Station Hacks 12 | . . 4 2 . 4 . . . . . . . . 2 . . . . . . . . . Scan Component 6 | . . 2 1 . 2 . . . . . . . . 1 . . . . . . . . . Repair 6 | . . 2 1 . 2 . . . . . . . . 1 . . . . . . . . . Recycling Unit Hacks . | . . . . . . . . . . . . . . . . . . . . . . . . Scanalyzer 9 | . . 3 . . 2 . . . . . . . . . . . . . . . 1 3 . Retrieve Study 9 | . . 3 . . 2 . . . . . . . . . . . . . . . 1 3 . Garrison Access Hacks 6 | . . . 1 . . 1 . 1 . 1 . 1 . . . . . . . . . . 1 Unlock Access 5 | . . . 1 . . 1 . 1 . 1 . 1 . . . . . . . . . . . Seal Access 1 | . . . . . . . . . . . . . . . . . . . . . . . 1 Unauthorized Hacks 4 | . . 1 . . . . . . . . . . . . . 1 . . . . . 2 . Terminals 4 | . . 1 . . . . . . . . . . . . . 1 . . . . . 2 . Botnet 4 | . . 1 . . . . . . . . . . . . . 1 . . . . . 2 . Fabricators . | . . . . . . . . . . . . . . . . . . . . . . . . Repair Stations . | . . . . . . . . . . . . . . . . . . . . . . . . Recycling Units . | . . . . . . . . . . . . . . . . . . . . . . . . Scanalyzers . | . . . . . . . . . . . . . . . . . . . . . . . . Garrison Access . | . . . . . . . . . . . . . . . . . . . . . . . . Data Cores Recovered 1 | . . 1 . . . . . . . . . . . . . . . . . . . . . Used . | . . . . . . . . . . . . . . . . . . . . . . . . Hacking Detections 44 | . 1 5 3 2 1 1 2 2 2 . 1 2 3 1 . 4 . . . . 3 8 3 Full Trace Events 4 | . 1 . 1 . . . . . . . . . 1 . . . . . . . . 1 . Feedback Events 1 | . . . . . . . . . . . . . 1 . . . . . . . . . . Corruption 1 | . . . . . . . . . . . . . 1 . . . . . . . . . . Feedback Blocked . | . . . . . . . . . . . . . . . . . . . . . . . . Robot Schematics Acquired 2 | . . . . . . . . . . . . . . . . . . . . . . . 2 Robots Built . | . . . . . . . . . . . . . . . . . . . . . . . . Authchips . | . . . . . . . . . . . . . . . . . . . . . . . . Time . | . . . . . . . . . . . . . . . . . . . . . . . . Total Robot Build Rating . | . . . . . . . . . . . . . . . . . . . . . . . . Part Schematics Acquired 6 | . . . . . . . . . . . . . . . . . . . 4 . . . 2 Parts Built . | . . . . . . . . . . . . . . . . . . . . . . . . Authchips . | . . . . . . . . . . . . . . . . . . . . . . . . Time . | . . . . . . . . . . . . . . . . . . . . . . . . Total Part Build Rating . | . . . . . . . . . . . . . . . . . . . . . . . . Part Studies Acquired 9 | . . 3 . . 2 . . . . . . . . . . . . . . . 1 3 . Parts Repaired 6 | . . 2 1 . 2 . . . . . . . . 1 . . . . . . . . . Time 228 | . . 76 32 . 76 . . . . . . . . 44 . . . . . . . . . Parts Recycled . | . . . . . . . . . . . . . . . . . . . . . . . . Recycled Matter . | . . . . . . . . . . . . . . . . . . . . . . . . Retrieved Matter . | . . . . . . . . . . . . . . . . . . . . . . . . Retrieved Components . | . . . . . . . . . . . . . . . . . . . . . . . . Parts Scanalyzed . | . . . . . . . . . . . . . . . . . . . . . . . . Part Schematics Acquired . | . . . . . . . . . . . . . . . . . . . . . . . . Parts Damaged . | . . . . . . . . . . . . . . . . . . . . . . . . Bothacking | -11 -10 -9 -9 -9 -8 -7 -7 -7 -7 -6 -6 -5 -5 -4 -4 -4 -4 -4 -4 -3 -3 -3 -3 ------------ Run | Yrd Mat Mat Sto Gar Mat Fac Gar Fac Gar Fac Gar Fac Gar Fac Was Fac Upp Upp Zhi Pro Res Qua Frg Used RIF Installer 6 | . . . . 2 . . 1 . 1 . 1 . 1 . . . . . . . . . . Coupler Efficiency 1 | . . . . . . . . . . . 1 . . . . . . . . . . . . Hotswap 1 | . . . . . . . . . 1 . . . . . . . . . . . . . . Command Fork 1 | . . . . 1 . . . . . . . . . . . . . . . . . . . Robot Detection 1 | . . . . . . . 1 . . . . . . . . . . . . . . . . Patrol Navigation 1 | . . . . . . . . . . . . . 1 . . . . . . . . . . Robots Hacked 72 | . . . . . . . . 3 14 . 11 1 14 5 5 10 . . . 2 4 1 2 Non-combat 9 | . . . . . . . . 1 . . . . . 3 . 3 . . . . 1 1 . Combat 63 | . . . . . . . . 2 14 . 11 1 14 2 5 7 . . . 2 3 . 2 Robot Hacks Applied 74 | . . . . . . . . 3 14 . 12 1 14 5 5 11 . . . 2 4 1 2 parse_system 5 | . . . . . . . . . 1 . . . 1 . . 2 . . . . . . 1 find_chute 1 | . . . . . . . . . . . . . . 1 . . . . . . . . . map_route 4 | . . . . . . . . . . . . . . 1 . 1 . . . . 1 1 . ignore_targets 5 | . . . . . . . . . . . . . . . 5 . . . . . . . . scatter_targeting 1 | . . . . . . . . . . . . . . . . . . . . . 1 . . overload_power 1 | . . . . . . . . . . . . . 1 . . . . . . . . . . disable_weapons 3 | . . . . . . . . 1 . . 1 . 1 . . . . . . . . . . overwrite_iff 16 | . . . . . . . . . 3 . 4 . 3 . . 4 . . . 2 . . . formatsys_low 3 | . . . . . . . . 1 . . . . . 1 . 1 . . . . . . . formatsys_high 35 | . . . . . . . . 1 10 . 7 1 8 2 . 3 . . . . 2 . 1 Relay Couplers Released 75 | . . . . 8 . . 12 . 16 . 13 . 22 . . 2 . . . . 2 . . Machine Destruction 75 | . . . . 8 . . 12 . 16 . 13 . 22 . . 2 . . . . 2 . . Attached 22 | . . . . . . . 1 1 4 . 5 . 6 1 . . . . . . 1 . 3 Fabnet Peak Effective % . | . . . . . . . . . . . . . . . . . . . . . . . . Robots Rewired 16 | . . . . . . . 4 . . . 12 . . . . . . . . . . . . Allies Hacked 1 | . . . . 1 . . . . . . . . . . . . . . . . . . . Hacks Repelled . | . . . . . . . . . . . . . . . . . . . . . . . . Allies | -11 -10 -9 -9 -9 -8 -7 -7 -7 -7 -6 -6 -5 -5 -4 -4 -4 -4 -4 -4 -3 -3 -3 -3 -------- Run | Yrd Mat Mat Sto Gar Mat Fac Gar Fac Gar Fac Gar Fac Gar Fac Was Fac Upp Upp Zhi Pro Res Qua Frg Total Allies 113 | . . . 10 . . . 4 3 20 . 25 1 14 3 19 9 . . . 2 2 . 1 Largest Group 21 | . . . 10 10 . . 2 3 3 2 7 6 10 3 21 17 . . . 2 1 . 1 Highest-Rated Group 742 | . . . 88 88 . . 45 63 62 32 212 192 241 112 742 584 . . . 94 64 . 116 Highest-Rated Ally 116 | . . . 16 16 . . 25 32 29 16 85 40 47 49 50 58 . . . 47 64 . 116 Total Orders 30 | . . . . . . . . 2 . 2 3 . 5 1 3 7 2 5 . . . . . STAY 8 | . . . . . . . . 1 . 1 2 . 3 . 1 . . . . . . . . FOLLOW 5 | . . . . . . . . . . 1 1 . 2 . 1 . . . . . . . . AID 5 | . . . . . . . . 1 . . . . . 1 1 2 . . . . . . . EXPLORE 12 | . . . . . . . . . . . . . . . . 5 2 5 . . . . . Ally Attacks 657 | . . . 6 66 . . 10 7 32 4 109 28 114 11 125 124 . . . 6 7 . 8 Total Damage 14223 | . . . 42 601 . . 274 211 402 60 2197 595 1976 301 3322 3271 . . . 201 250 . 520 Kills 81 | . . . 1 7 . . . 3 3 . 17 8 12 1 8 18 . . . 1 . . 2 Allies Corrupted 3 | . . . . . . . . . . . . . . . . 3 . . . . . . . Allies Melted 1 | . . . . . . . . . . . 1 . . . . . . . . . . . . Intel | -11 -10 -9 -9 -9 -8 -7 -7 -7 -7 -6 -6 -5 -5 -4 -4 -4 -4 -4 -4 -3 -3 -3 -3 ------- Run | Yrd Mat Mat Sto Gar Mat Fac Gar Fac Gar Fac Gar Fac Gar Fac Was Fac Upp Upp Zhi Pro Res Qua Frg Active Infowar (turns) 13467 | 31 586 830 274 . 871 763 68 539 48 102 145 183 2 627 713 980 733 1233 444 1074 1285 1044 892 Optics 310 | . . . . . 310 . . . . . . . . . . . . . . . . . . Sensors 11340 | . . . . . 472 763 68 539 48 102 145 183 2 627 713 973 733 1233 444 1074 1285 1044 892 Seismic 1810 | 31 586 830 274 . 89 . . . . . . . . . . . . . . . . . . Cloaking 121 | . . . . . . . . . . . . . . . . 121 . . . . . . . Robot Analysis Total 4 | . . . . . . . . . . . . . . . . . . . 4 . . . . Derelict Logs Recovered 5 | . . . . . . . . . . . . . . . . . 2 3 . . . . . Drone Launches 12 | . . . . . . . . . . . . . . . . 5 2 5 . . . . . Drone Recoveries 11 | . . . . . . . . . . . . . . . . 4 2 5 . . . . . Exploration | -11 -10 -9 -9 -9 -8 -7 -7 -7 -7 -6 -6 -5 -5 -4 -4 -4 -4 -4 -4 -3 -3 -3 -3 ------------- Run | Yrd Mat Mat Sto Gar Mat Fac Gar Fac Gar Fac Gar Fac Gar Fac Was Fac Upp Upp Zhi Pro Res Qua Frg Turns Passed 30774 | 113 1396 2830 1131 1602 1928 833 1759 1384 2285 102 2168 365 2380 627 713 1610 733 1233 444 1092 1357 1362 1327 Spaces Moved 13254 | 57 642 1267 452 641 545 384 657 598 995 59 982 203 1095 303 333 623 335 514 254 506 611 650 548 Core 27 | 7 . . . . . . . . . . . . . . . . . . . . . . 20 Treads 10238 | . 520 1267 452 641 522 384 657 325 965 59 982 203 1067 . 143 57 . . . 283 611 650 450 Legs 172 | 50 122 . . . . . . . . . . . . . . . . . . . . . . Wheels 2745 | . . . . . 23 . . 273 30 . . . 28 303 190 566 335 514 254 223 . . 6 Hover 72 | . . . . . . . . . . . . . . . . . . . . . . . 72 Flight . | . . . . . . . . . . . . . . . . . . . . . . . . Fastest Speed 50 | 50 120 160 170 170 145 210 210 145 160 160 160 160 160 160 160 160 160 160 160 152 150 150 50 Average Speed 175 | 114 152 168 170 197 236 210 210 198 195 160 160 160 160 163 196 171 160 164 160 169 153 163 160 Slowest Speed 370 | 120 160 170 170 250 330 210 210 370 219 160 160 160 160 175 225 225 175 175 175 240 232 180 250 Overloaded Moves . | . . . . . . . . . . . . . . . . . . . . . . . . Propulsion Burnouts . | . . . . . . . . . . . . . . . . . . . . . . . . Robots Hopped . | . . . . . . . . . . . . . . . . . . . . . . . . Potential Cave-ins 2 | . . . . . . . . . . . . . . . . . . . . . 2 . . Cave-ins Triggered . | . . . . . . . . . . . . . . . . . . . . . . . . Teleports 1 | . . . . . . . . . . . . . . . . . . . . . . . 1 Exploration Rate (%) 51 | 3 91 94 68 56 52 9 64 21 81 4 69 7 96 12 96 18 83 83 62 61 16 76 22 Regions Visited 23 Branch Regions 7 Pre-discovered Areas 3 | . . . . . . . . . . . . . . . . . . . 3 . . . . Known Exits Taken 14 | . . 1 1 . 1 1 . 1 . 1 . 1 . . . 1 1 1 1 1 1 1 . Unknown Exits Taken 2 | 1 1 . . . . . . . . . . . . . . . . . . . . . . Scrap Searched 7 | . . . . . . . . . . . . . . . . . 4 2 . 1 . . . Spaces Dug 116 | . 11 3 1 3 5 . 3 1 6 . 3 . 2 4 . 17 1 22 . 14 8 9 3 Terrain Destroyed 479 | . 14 28 16 3 7 . 12 14 10 . 60 . 10 13 . 54 12 27 . 104 40 26 29 Melee 69 | . . . 1 3 2 . 3 . 6 . 3 . 2 4 . 13 1 11 . 11 6 3 . Projectile 235 | . 14 6 . . 5 . 9 14 4 . 7 . 8 9 . 25 11 16 . 34 34 23 16 AOE 174 | . . 22 15 . . . . . . . 49 . . . . 16 . . . 59 . . 13 Terrain Rammed . | . . . . . . . . . . . . . . . . . . . . . . . . Walls Destroyed . | . . . . . . . . . . . . . . . . . . . . . . . . Machines Disabled . | . . . . . . . . . . . . . . . . . . . . . . . . Actions | -11 -10 -9 -9 -9 -8 -7 -7 -7 -7 -6 -6 -5 -5 -4 -4 -4 -4 -4 -4 -3 -3 -3 -3 --------- Run | Yrd Mat Mat Sto Gar Mat Fac Gar Fac Gar Fac Gar Fac Gar Fac Was Fac Upp Upp Zhi Pro Res Qua Frg Total 18420 | 83 893 1743 677 800 939 402 896 753 1200 66 1411 228 1456 404 388 1056 517 856 282 672 960 858 880 Wait 2560 | 6 120 265 101 17 182 1 81 92 40 6 90 9 119 64 40 305 155 292 . 74 229 103 169 Move 13231 | 56 641 1266 452 639 544 384 655 597 993 59 980 203 1093 303 332 622 334 513 253 505 610 649 548 Hop . | . . . . . . . . . . . . . . . . . . . . . . . . Pick Up 221 | 2 16 21 8 13 18 4 13 8 19 . 19 2 27 1 1 6 5 5 2 6 13 7 5 Fast Attach 143 | 8 3 14 2 1 15 1 7 7 5 . 7 1 12 1 3 9 . . 8 1 9 13 16 Attach 102 | . 2 3 1 5 9 1 4 1 13 1 6 1 9 2 . 5 4 5 2 4 4 . 20 Detach 25 | 1 . . 1 . 2 . . . . . 1 . 1 . . 6 2 . 2 . 2 . 7 Swap 279 | . 20 22 17 11 22 1 10 8 12 . 33 3 23 5 1 12 . . . 13 21 22 23 Drop 250 | . 9 35 10 2 22 2 16 15 16 . 19 2 31 . 3 9 2 4 9 4 17 16 7 Fire 1144 | 10 81 113 63 44 121 8 80 24 55 . 91 6 96 19 6 66 14 25 . 53 45 39 85 Melee 276 | . . . 20 66 4 . 12 . 33 . 18 1 45 9 2 16 1 12 6 12 10 9 . Ram 1 | . . . . . . . . 1 . . . . . . . . . . . . . . . Kick . | . . . . . . . . . . . . . . . . . . . . . . . . Crush 7 | . 1 4 2 . . . . . . . . . . . . . . . . . . . . Escape Stasis 20 | . . . . 2 . . 4 . 14 . . . . . . . . . . . . . . Rewire 161 | . . . . . . . 14 . . . 147 . . . . . . . . . . . . Trap . | . . . . . . . . . . . . . . . . . . . . . . . . Miscellaneous . | . . . . . . . . . . . . . . . . . . . . . . . . Route ------- -11/Scrapyard -10/Materials (discovered 6 exits: *Mat x3 / [*Min x2] / [*Sub]) -9/Materials (discovered 5 exits: *Mat x3 / *Min / *Sto) -9/Storage (discovered 2 exits: *Mat / Gar) -9/Garrison (discovered 2 exits: *Mat x2) -8/Materials -7/Factory -7/Garrison (discovered 3 exits: *Fac x3) -7/Factory -7/Garrison (discovered 3 exits: *Fac x3) -6/Factory -6/Garrison (discovered 3 exits: *Fac x3) -5/Factory -5/Garrison (discovered 3 exits: *Fac x3) -4/Factory -4/Waste -4/Factory -4/Upper Caves -4/Upper Caves (discovered 2 exits: *Res / *Zhi) -4/Zhirov -3/Proximity Caves -3/Research (discovered 2 exits: Res / *Qua) -3/Quarantine (discovered 3 exits: *Res / [*Sec] / *Frg) -3/Protoforge (discovered 1 exit: *Res) History --------- Turn | Location | Event 15 | -11/Scrapyard | Discovered new exit (range 15) 114 | -11/Scrapyard | Entered Materials 164 | -10/Materials | Discovered new exit (range 5) 272 | -10/Materials | Discovered new exit (range 7) 315 | -10/Materials | Build established: Mutant 398 | -10/Materials | Discovered new exit (range 12) 507 | -10/Materials | Discovered new exit (range 3) 753 | -10/Materials | Discovered new exit (range 15) 838 | -10/Materials | Core integrity fell below 50% 1132 | -10/Materials | Discovered new exit (range 6) 1510 | -10/Materials | Entered another Materials area 1510 | -9/Materials | Evolved 2 slots: Propulsion x1, Weapon x1 2194 | -9/Materials | Build established: Gunner 2480 | -9/Materials | Discovered new exit (range 9) 2568 | -9/Materials | Identified exit to Mines 2568 | -9/Materials | Identified exit to Storage 2922 | -9/Materials | Build established: Tank 3039 | -9/Materials | Discovered new exit (range 9) 3099 | -9/Materials | Repaired Arm. Treads 3139 | -9/Materials | Repaired Arm. Treads 3615 | -9/Materials | Discovered new exit (range 11) 3774 | -9/Materials | Discovered new exit (range 8) 4340 | -9/Materials | Entered Storage 4436 | -9/Storage | Repaired Autogun+ 5129 | -9/Storage | Core integrity fell below 50% 5205 | -9/Storage | Discovered new exit (range 9) 5279 | -9/Storage | Garrison activated, responded to threat 5326 | -9/Storage | Assisted by bots powering up and referring to "LRC-V3" 5399 | -9/Storage | Garrison activated, responded to threat 5433 | -9/Storage | Identified exit to Garrison 5471 | -9/Storage | Entered Garrison 5471 | -9/Garrison | Accompanied by 10 allies 5531 | -9/Garrison | Lost 5 allies 5723 | -9/Garrison | Triggered checkpoint 5737 | -9/Garrison | Triggered checkpoint 5814 | -9/Garrison | Spotted B-75 Beast 5843 | -9/Garrison | Core integrity fell below 20% 5854 | -9/Garrison | Discovered new exit (range 14) 5869 | -9/Garrison | Destroyed B-75 Beast 5870 | -9/Garrison | Lost 3 allies 5898 | -9/Garrison | Lost 4 parts (1u3w) 6009 | -9/Garrison | Triggered checkpoint 6207 | -9/Garrison | Discovered new exit (range 14) 6238 | -9/Garrison | Installed Relay Interface Framework 6320 | -9/Garrison | Expanded RIF knowledge: Command Fork 6363 | -9/Garrison | Triggered checkpoint 6402 | -9/Garrison | Garrison Relay disabled 6610 | -9/Garrison | Garrison Relay disabled 7021 | -9/Garrison | Build established: Mutant 7073 | -9/Garrison | Entered Materials 7073 | -8/Materials | Evolved 2 slots: Utility x2 7366 | -8/Materials | Build established: Tank 7501 | -8/Materials | Repaired Arm. Treads 7541 | -8/Materials | Repaired Arm. Treads 7677 | -8/Materials | Garrison activated, responded to threat 7873 | -8/Materials | First assault squad dispatched 8010 | -8/Materials | Garrison activated, responded to threat 8040 | -8/Materials | Core integrity fell below 50% 8075 | -8/Materials | Lost 6 parts (4u2w) 8823 | -8/Materials | Discovered new exit (range 15) 8857 | -8/Materials | Identified exit to Factory 9001 | -8/Materials | Entered Factory 9001 | -7/Factory | Evolved 2 slots: Propulsion x1, Utility x1 9358 | -7/Factory | Build established: Skirmisher 9834 | -7/Factory | Identified exit to Garrison 9834 | -7/Factory | Entered Garrison 9994 | -7/Garrison | Triggered checkpoint 10246 | -7/Garrison | Triggered checkpoint 10257 | -7/Garrison | Spotted B-75 Beast 10279 | -7/Garrison | Destroyed B-75 Beast 10305 | -7/Garrison | Garrison Relay disabled 10499 | -7/Garrison | Build established: Bothacker-Mutant 10515 | -7/Garrison | Triggered checkpoint 10578 | -7/Garrison | Discovered new exit (range 12) 10664 | -7/Garrison | Triggered checkpoint 10691 | -7/Garrison | Garrison Relay disabled 10921 | -7/Garrison | Garrison Relay disabled 11022 | -7/Garrison | Expanded RIF knowledge: Robot Detection 11119 | -7/Garrison | Triggered checkpoint 11148 | -7/Garrison | Triggered checkpoint 11270 | -7/Garrison | Triggered checkpoint 11338 | -7/Garrison | Discovered new exit (range 61) 11338 | -7/Garrison | Discovered new exit (range 13) 11338 | -7/Garrison | Discovered new exit (range 71) 11588 | -7/Garrison | Identified exit to Factory 11593 | -7/Garrison | Entered Factory 12950 | -7/Factory | Identified exit to Garrison 12977 | -7/Factory | Entered Garrison 13008 | -7/Garrison | Expanded RIF knowledge: Hotswap 13098 | -7/Garrison | Lost 4 parts (1p2n1w) 13147 | -7/Garrison | Triggered checkpoint 13265 | -7/Garrison | Garrison Relay disabled 13308 | -7/Garrison | Build established: Botlord-Mutant 13429 | -7/Garrison | Triggered checkpoint 13483 | -7/Garrison | Core integrity fell below 50% 13561 | -7/Garrison | Lost 15 allies 13597 | -7/Garrison | Triggered checkpoint 13663 | -7/Garrison | Triggered checkpoint 13929 | -7/Garrison | Build established: Bothacker-Mutant 14087 | -7/Garrison | Discovered new exit (range 9) 14109 | -7/Garrison | Identified exit to Factory 14211 | -7/Garrison | Triggered checkpoint 14285 | -7/Garrison | Triggered checkpoint 14304 | -7/Garrison | Garrison Relay disabled 14368 | -7/Garrison | Discovered exit to Factory (range 3) 14597 | -7/Garrison | Triggered checkpoint 14639 | -7/Garrison | Garrison Relay disabled 14849 | -7/Garrison | Garrison Relay disabled 14933 | -7/Garrison | Triggered checkpoint 14940 | -7/Garrison | Discovered exit to Factory (range 15) 14953 | -7/Garrison | Build established: Botlord-Tank 15131 | -7/Garrison | System corruption reached 10% 15132 | -7/Garrison | System corruption reached 30% 15262 | -7/Garrison | Entered Factory 15262 | -6/Factory | Accompanied by 2 allies 15262 | -6/Factory | Evolved 2 slots: Utility x2 15283 | -6/Factory | Build established: Botlord-Mutant 15363 | -6/Factory | Identified exit to Garrison 15364 | -6/Factory | Entered Garrison 15482 | -6/Garrison | Spotted B-75 Beast 15576 | -6/Garrison | Destroyed B-75 Beast 15660 | -6/Garrison | Triggered checkpoint 15689 | -6/Garrison | Garrison Relay disabled 15866 | -6/Garrison | Triggered checkpoint 15961 | -6/Garrison | Lost 4 allies 16057 | -6/Garrison | Discovered new exit (range 14) 16146 | -6/Garrison | Triggered checkpoint 16266 | -6/Garrison | Garrison Relay disabled 16306 | -6/Garrison | Triggered checkpoint 16350 | -6/Garrison | Triggered checkpoint 16449 | -6/Garrison | Triggered checkpoint 16451 | -6/Garrison | Triggered checkpoint 16602 | -6/Garrison | Discovered new exit (range 12) 16650 | -6/Garrison | Triggered checkpoint 16693 | -6/Garrison | Lost 5 allies 16754 | -6/Garrison | Garrison Relay disabled 16784 | -6/Garrison | Expanded RIF knowledge: Coupler Efficiency 17104 | -6/Garrison | Triggered checkpoint 17120 | -6/Garrison | Discovered new exit (range 14) 17360 | -6/Garrison | System corruption reached 10% 17436 | -6/Garrison | Triggered checkpoint 17509 | -6/Garrison | Identified exit to Factory 17532 | -6/Garrison | Entered Factory 17532 | -5/Factory | Accompanied by 6 allies 17532 | -5/Factory | Evolved 2 slots: Power x1, Utility x1 17536 | -5/Factory | Garrison activated, responded to threat 17891 | -5/Factory | Identified exit to Garrison 17897 | -5/Factory | Entered Garrison 17897 | -5/Garrison | Accompanied by 5 allies 17931 | -5/Garrison | Triggered checkpoint 17965 | -5/Garrison | Garrison Relay disabled 17982 | -5/Garrison | Garrison Relay disabled 18121 | -5/Garrison | Triggered checkpoint 18122 | -5/Garrison | Triggered checkpoint 18141 | -5/Garrison | Triggered checkpoint 18161 | -5/Garrison | Lost 3 allies 18169 | -5/Garrison | Triggered checkpoint 18216 | -5/Garrison | Lost 3 allies 18294 | -5/Garrison | Lost 3 allies 18361 | -5/Garrison | Triggered checkpoint 18409 | -5/Garrison | Triggered checkpoint 18456 | -5/Garrison | Garrison Relay disabled 18534 | -5/Garrison | Discovered new exit (range 3) 18538 | -5/Garrison | Identified exit to Factory 18582 | -5/Garrison | Spotted B-75 Beast 18582 | -5/Garrison | Spotted B-75 Beast 18664 | -5/Garrison | Allies destroyed B-75 Beast 18701 | -5/Garrison | Destroyed B-75 Beast 18713 | -5/Garrison | Lost 3 allies 18726 | -5/Garrison | Lost 3 parts (2u1w) 19089 | -5/Garrison | Expanded RIF knowledge: Patrol Navigation 19267 | -5/Garrison | Garrison Relay disabled 19325 | -5/Garrison | Destroyed 9 combat bots 19331 | -5/Garrison | Garrison Relay disabled 19479 | -5/Garrison | Discovered exit to Factory (range 12) 19530 | -5/Garrison | Learned Factory security intel 19727 | -5/Garrison | Discovered exit to Factory (range 10) 19829 | -5/Garrison | Triggered checkpoint 19867 | -5/Garrison | Garrison Relay disabled 20016 | -5/Garrison | Garrison Relay disabled 20277 | -5/Garrison | Entered Factory 20277 | -4/Factory | Evolved 2 slots: Utility x2 20723 | -4/Factory | Discovered new exit (range 70) 20853 | -4/Factory | Repaired Arm. Huge Wheel 20904 | -4/Factory | Sucked down chute 20904 | -4/Factory | Entered Waste 20917 | -4/Waste | Spotted C-40 Crusher 20946 | -4/Waste | Spotted C-40 Crusher 20954 | -4/Waste | 2 allies followed down the chute 20966 | -4/Waste | Spotted C-40 Crusher 20996 | -4/Waste | Spotted C-40 Crusher 21009 | -4/Waste | Allies destroyed C-40 Crusher 21015 | -4/Waste | Build established: Botlord-Tank 21038 | -4/Waste | Spotted C-40 Crusher 21038 | -4/Waste | Spotted C-40 Crusher 21247 | -4/Waste | Warlord forces began an assault 21258 | -4/Waste | Allies destroyed C-40 Crusher 21398 | -4/Waste | Allies destroyed C-40 Crusher 21582 | -4/Waste | Discovered new exit (range 12) 21610 | -4/Waste | Identified exit to Factory 21617 | -4/Waste | Entered Factory 21617 | -4/Factory | Accompanied by 17 allies 21810 | -4/Factory | Garrison activated, responded to threat 21871 | -4/Factory | Lost 5 allies 21911 | -4/Factory | Build established: Botlord-Mutant 21962 | -4/Factory | Lost 5 allies 22058 | -4/Factory | Lost 3 allies 22152 | -4/Factory | Lost 3 allies 22250 | -4/Factory | Spotted B-86 Titan 22290 | -4/Factory | Destroyed B-86 Titan 22321 | -4/Factory | Lost 4 allies 22807 | -4/Factory | Discovered new exit (range 6) 22815 | -4/Factory | Identified exit to Upper Caves 23227 | -4/Factory | Entered Upper Caves 23349 | -4/Upper Caves | Learned location of 1 exit from Research 23512 | -4/Upper Caves | Identified exit to Upper Caves 23960 | -4/Upper Caves | Entered another Upper Caves area 23968 | -4/Upper Caves | Discovered new exit (range 29) 24259 | -4/Upper Caves | Learned Research non-interactive machine intel 24321 | -4/Upper Caves | Identified exit to Research 25175 | -4/Upper Caves | Discovered new exit (range 10) 25191 | -4/Upper Caves | Identified exit to Zhirov 25193 | -4/Upper Caves | Entered Zhirov 25194 | -4/Zhirov | Discovered new exit (range 3) 25223 | -4/Zhirov | Met Zhirov 25271 | -4/Zhirov | Learned location of Quarantine (-3) 25271 | -4/Zhirov | Learned location of Testing (-2) 25271 | -4/Zhirov | Learned location of Command (-1) 25285 | -4/Zhirov | Zhirov requested help retrieving the SGEMP Prototype 25310 | -4/Zhirov | Found Alien Artifact 25310 | -4/Zhirov | Identified Integrated Reactor 25310 | -4/Zhirov | Installed Integrated Reactor, increased core energy generation (+10) 25332 | -4/Zhirov | Found Alien Artifact 25635 | -4/Zhirov | Identified exit to Proximity Caves 25637 | -4/Zhirov | Entered Proximity Caves 25872 | -3/Proximity Caves | Spotted B-86 Titan 26528 | -3/Proximity Caves | Attracted the attention of an 0b10 checkpoint 26649 | -3/Proximity Caves | Discovered exit to Research (range 8) 26729 | -3/Proximity Caves | Entered Research 26729 | -3/Research | Evolved 2 slots: Propulsion x2 26730 | -3/Research | Identified exit to Research 26731 | -3/Research | Loaded intel: 81 non-interactive machine locations 26825 | -3/Research | Build established: Botlord-Tank 27157 | -3/Research | Found Gamma Bomb Array 27231 | -3/Research | Build established: Botlord-Mutant 27479 | -3/Research | Found Prototype Launcher 27479 | -3/Research | Identified Adv. Micro-nuke Launcher 27957 | -3/Research | Discovered new exit (range 15) 28071 | -3/Research | Build established: Botlord-Tank 28085 | -3/Research | Identified exit to Quarantine 28086 | -3/Research | Entered Quarantine 28185 | -3/Quarantine | Found Alien Artifact 28185 | -3/Quarantine | Identified Phase Redirector 28314 | -3/Quarantine | Discovered exit to Research (range 15) 28484 | -3/Quarantine | System corruption reached 10% 28731 | -3/Quarantine | Build established: Botlord-Mutant 29153 | -3/Quarantine | Build established: Botlord-Tank 29313 | -3/Quarantine | Spotted Fortress 29437 | -3/Quarantine | Discovered new exit (range 6) 29437 | -3/Quarantine | Discovered new exit (range 6) 29446 | -3/Quarantine | Identified exit to Protoforge 29448 | -3/Quarantine | Entered Protoforge 29616 | -3/Protoforge | Superfortress began startup sequence 29753 | -3/Protoforge | Spotted Hotshot 29755 | -3/Protoforge | Spotted Hotshot 29755 | -3/Protoforge | Destroyed Hotshot 29757 | -3/Protoforge | Spotted Hotshot 29760 | -3/Protoforge | Destroyed Hotshot 29760 | -3/Protoforge | Destroyed Hotshot 29765 | -3/Protoforge | Spotted Hotshot 29768 | -3/Protoforge | Destroyed Hotshot 29782 | -3/Protoforge | Spotted Overlord 29824 | -3/Protoforge | Destroyed Overlord 29858 | -3/Protoforge | Lost 5 parts (1p2n1u1w) 29879 | -3/Protoforge | Discovered exit to Research (range 15) 30077 | -3/Protoforge | Build established: Botlord-Mutant 30152 | -3/Protoforge | System corruption reached 30% 30202 | -3/Protoforge | Lost 4 parts (4u) 30306 | -3/Protoforge | Spotted B-86 Titan 30314 | -3/Protoforge | Assimilated Titan 8a with formatsys_high 30517 | -3/Protoforge | Found Prototype Slashing Weapon 30517 | -3/Protoforge | Identified Exp. Terror Saw 30559 | -3/Protoforge | Found Prototype Ballistic Gun 30562 | -3/Protoforge | Found Prototype Ballistic Gun 30591 | -3/Protoforge | Build established: Bothacker-Mutant 30597 | -3/Protoforge | Identified Cep. XC Strikerail (x2) 30604 | -3/Protoforge | Spotted Striker 30607 | -3/Protoforge | Identified Transdimensional Reconstructor 30607 | -3/Protoforge | Warped through subspace 30608 | -3/Protoforge | Core integrity fell below 50% 30661 | -3/Protoforge | Core integrity fell below 20% 30697 | -3/Protoforge | Lost 14 parts (1p3n6u4w) 30712 | -3/Protoforge | Spotted Hotshot 30734 | -3/Protoforge | Spotted Hotshot 30735 | -3/Protoforge | Spotted Hotshot 30737 | -3/Protoforge | Spotted Hotshot 30772 | -3/Protoforge | Destroyed Hotshot 30775 | -3/Protoforge | Destroyed by Hotshot with Improved Heavy Laser Last Messages --------------- 30691_ Acquired Adv. Target Analyzer. 30694_ Acquired Adv. Heat Sink. 30695_ Acquired 46 matter. 30696_ Acquired Sml. Battery. 30697_ System corrupted: Energy discharge (-34). 30699_ Acquired Gamma Rifle. 30712_ System corrupted: Energy discharge (-80). 30730_ System corrupted: Heat flow error (+180). 30741_ Gamma Bomb Array destroyed. 30741_ Imp. Antigrav System destroyed. 30744_ U-05 Engineer repairs door. 30746_ System corrupted: Heat flow error (+231). 30763_ Gamma Rifle destroyed. 30768_ N-04 Retriever collects Corrupted Adv. Heat Sink. 30769_ Imp. Antigrav System destroyed. 30772_ Hotshot system terminally corrupted. 30772_ Imp. Antigrav System destroyed. 30772_ Adv. Heat Sink destroyed. 30773_ Hotshot activates shielding mode. 30775_ Graphene Brace destroyed. Map ----- +----------------------------------------------------+ | ?????????????????????????????????????????????????? | | ?????????????????????????????????????????????????? | | ?????????????????????????????????????????????????? | | ?????????????????????????????????????????????????? | | ?????????????????????????????????????????????????? | | ?????????????????????????????????????????????????? | | ?????????????????????????????????????????????????? | | ?????????????????????????????????????????????????? | | ?????????????????? ?????????????????????????????? | | ?????????????????" #????????????????????????????? | | ?????????????????" #????????????????????????????? | | ?????????????????" #????????????????????????????? | | ?????????????????" #????????????????????????????? | | ?????????????????# #????????????????????????????? | | ?????????????????# #????????????????????????????? | | ?????????????????# #????????????????????????????? | | ?????????????????# #????????????????????????????? | | ?????????????????# #????????????????????????????? | | ?????????????????# #????????????????????????????? | | ?????????????????# #????????????????????????????? | | ################## #####################????????? | | ???????? | | ???????? | | %!g ???????? | | ???##++###################/gg######## ?????????? | | ??????????????????????# @= #????????????????? | | ??????????????????????# #????????????????? | | ??????????????????????# " " #????????????????? | | ??????????????????????# " " #????????????????? | | ??????????????????????# %""G"" #????????????????? | | ??????????????????????# | #????????????????? | | ??????????????????????###########????????????????? | | ?????????????????????????????????????????????????? | | ?????????????????????????????????????????????????? | | ?????????????????????????????????????????????????? | | ?????????????????????????????????????????????????? | | ???????????????????????????????????????????????? | | ??????????????????????????????????????????????? | | ??????????????????????????????????????????????? | | ?????????????????????????????????????????????? | | ?????????????????????????????????????????????? | | ????????????????????????????????????????????? | | ????????????????????????????????????######### | | ????????????????????????????????????#"""""""" | | ????????????????????????????????????# """" | | ?????????######???######???##########!] "" | | ?????????#""""#???#""""#???#""" " |*]! % | | ?#########!! !##### !####"!!!!"""=![]! | | ?# = $!]!] | | ?# %% ! *| | +----------------------------------------------------+ Best States ------------- Heat Dissipation 84 Coolant Potential 65 Energy Generation 48 Energy Capacity 710 Matter Stores 300 Matter Capacity 300 Sight Range 18 Robot Scan Range 16 Terrain Scan Density 10 Cloak Strength 3 Armor Coverage 600 Resistance: KI 30 Weapon Shielding 90 Weapon Cycling 25 Evasion (%) 55 Launcher Accuracy 60 Target Analysis 12 Core Analysis 6 Recoil Reduction 6 Offensive Hacking 28 Relay Coupler Types 5 Relay Coupler Value 122 Item Schematics ----------------- Assault Drone Bay | -4/Zhirov | Free Exp. Heat Sink | -4/Zhirov | Free Exp. Optical Array | -4/Zhirov | Free Imp. Arc Thrower | -4/Zhirov | Free Imp. Lightning Gun | -3/Protoforge | Archive Neutron Missile Launcher | -3/Protoforge | Archive Robot Schematics ------------------ T-07 Excavator | -3/Protoforge | Archive B-74 Champion | -3/Protoforge | Archive Fabricated ------------ Nothing Repaired ---------- Arm. Treads | 36% | -9/Materials Arm. Treads | 47% | -9/Materials Autogun | 62% | -9/Storage Arm. Treads | 21% | -8/Materials Arm. Treads | 27% | -8/Materials Arm. Huge Wheel | 50% | -4/Factory Studied --------- Autogun | -9/Materials | Hacked Hvy. Assault Rifle | -9/Materials | Hacked Hammer | -9/Materials | Hacked Lgt. Nuclear Core | -8/Materials | Hacked Arm. Treads | -8/Materials | Hacked Mic. Antimatter Reactor | -3/Research | Hacked Linear Accelerator | -3/Quarantine | Hacked Centrium Wheel | -3/Quarantine | Hacked Axe | -3/Quarantine | Hacked Alien Tech Used ----------------- Integrated Reactor Phase Redirector Transdimensional Reconstructor Achievements -------------- Watcher Gambling Challenges ------------ None Game ------ Seed ExoskeletonRelaySheargun Manual? 0 Play Time 04:41:41 Cumulative 518.3 hours Start 2026.07.08 @ 20:04:43 End 2026.07.10 @ 08:08:08 Sessions 7 Manual Loads 0 Difficulty Rogue Special Mode None Game No. 185 Rogue 164 Adventurer 21 Explorer 0 Win Type - Total 27 Types 16/1/5/1/0/0/0/3/0/1 Lore% 69 Gallery% 74 Achievement% 68 Wizard Run 0 Options --------- Layout 1 ASCII 0 Keyboard 0 Movement Mouse Keybinds 0 Fullscreen 2 Font 32/SmallcapsGlow Map View 77x35 Zoom Use 0% Tactical HUD 1 Map Filters NONE Filters NONE Steam 1 RUN: 6299872f-09fe-47e1-823a-85ddf6a3b480